bitfinex-derivatives/quotes_BNBF0:USTF0_20250309
["timestamp","ask_amount","ask_price","bid_price","bid_amount"]
[1741544266041,1.40609786,551.24,550.33,0.30420103]
[1741544266242,1.40609786,551.24,550.29,0.30420103]
[1741544266436,1.40609786,551.24,549.43,0.31589984]
[1741544266640,1.40609786,551.24,550.29,0.30412833]
[1741544266841,4.74522786,551.23,550.29,0.30412833]
[1741544267042,1.08966793,551.22,550.29,0.30412833]
[1741544267348,4.74522786,551.21,550.29,0.30412833]
[1741544267644,2.83208601,551.2,550.29,0.30412833]
[1741544267943,2.83208601,551.19,550.29,0.30412833]
[1741544268244,2.83208601,551.18,550.29,0.30412833]
[1741544268444,3.65555993,551.2,550.29,0.30412833]
[1741544268738,1.73429115,551.17,550.29,0.30412833]
[1741544268944,2.83009892,551.16,550.29,0.30412833]
[1741544269140,1.73429115,551.17,550.29,0.30412833]
[1741544269644,3.65555993,551.16,550.29,0.30412833]
[1741544270043,0.31596868,551.15,550.29,0.30412833]
[1741544270348,3.97152861,551.15,550.29,0.30412833]
[1741544270744,3.65555993,551.14,550.29,0.30412833]
[1741544271337,3.65555993,551.13,550.29,0.30412833]
[1741544271939,3.65555993,551.12,550.29,0.30412833]
[1741544272137,3.65555993,551.12,550.3,0.30431743]
[1741544272438,3.65555993,551.12,550.31,0.30431743]
[1741544272640,0.31596868,551.15,550.29,0.30431743]
[1741544272842,0.31596868,551.15,550.3,0.30431743]
[1741544273237,0.31596868,551.15,550.31,0.30431743]
[1741544273544,0.31596868,551.15,550.32,0.30431743]
[1741544273739,0.31596868,551.15,550.29,0.30431743]
[1741544273936,0.31596868,551.15,550.3,0.30431743]
[1741544274140,0.31596868,551.15,550.29,0.30431743]
[1741544274337,0.31596868,551.15,550.3,0.30431743]
[1741544274536,0.31596868,551.15,550.29,0.30431743]
[1741544274742,0.31596868,551.15,550.3,0.30431743]
[1741544275139,0.31596868,551.15,550.31,0.30431743]
[1741544275446,0.31596868,551.15,550.32,0.30418353]
[1741544275647,0.31596868,551.15,550.29,0.30418353]
[1741544275944,0.72,551.39,550.3,0.30418353]
[1741544275945,1.40273192,551.3,550.3,0.30418353]
[1741544276139,0.31604472,551.14,550.29,0.30418353]
[1741544276339,1.40273192,551.29,550.3,0.30418353]
[1741544276541,1.40273192,551.29,550.29,0.30418353]
[1741544276739,1.40273192,551.29,550.3,0.30418353]
[1741544276944,1.40273192,551.29,550.29,0.30418353]
[1741544277141,0.31591131,551.13,550.31,0.30418353]
[1741544277340,1.40273192,551.28,550.3,0.30418353]
[1741544277646,1.40273192,551.36,550.31,0.30418353]
[1741544278043,1.40273192,551.36,550.32,0.30418353]
[1741544278246,1.40273192,551.36,550.29,0.30418353]
[1741544278443,1.40273192,551.36,550.3,0.30418353]
[1741544278639,1.71863749,551.35,550.29,0.30418353]
[1741544278846,1.71863749,551.35,550.3,0.30418353]
[1741544279348,1.40273192,551.34,550.31,0.30418353]
[1741544279548,1.40273192,551.34,550.32,0.30418353]
[1741544279744,1.40273192,551.34,550.29,0.30418353]
[1741544280148,2.48807485,551.34,550.29,0.30418353]
[1741544280347,3.65219399,551.33,550.29,0.30418353]
[1741544280752,3.65219399,551.33,550.31,0.36343152]
[1741544281053,1.40273192,551.32,550.32,0.30420601]
[1741544281452,1.40273192,551.32,550.34,0.3634117]
[1741544281648,0.31590557,551.35,550.35,0.30420601]
[1741544281855,0.31590557,551.35,550.37,0.36339189]
[1741544282155,0.31590557,551.35,550.38,0.30420601]
[1741544282756,1.40273192,551.34,550.38,0.30420601]
[1741544282951,1.40273192,551.33,550.39,0.36337869]
[1741544283154,1.40273192,551.33,550.4,0.30420601]
[1741544283454,1.40273192,551.33,550.41,0.36336549]
[1741544283655,1.40273192,551.32,550.42,0.30420601]
[1741544284459,3.65219399,551.31,550.42,0.30420601]
[1741544284956,0.378,551.3,550.43,0.30420601]
[1741544285158,1.78073192,551.3,550.42,0.30420601]
[1741544285457,1.78073192,551.3,550.43,0.30420601]
[1741544285657,1.40273192,551.29,550.43,0.30420601]
[1741544285858,1.40273192,551.29,550.42,0.30420601]
[1741544286058,1.08609041,551.28,550.43,0.30420601]
[1741544286354,1.08609041,551.27,550.44,0.30420601]
[1741544286554,1.08609041,551.26,550.44,0.30420601]
[1741544286750,1.08609041,551.25,550.45,0.30420601]
[1741544287057,3.64457686,551.26,550.46,0.30420601]
[1741544287058,1.08609041,551.24,550.46,0.30420601]
[1741544287258,1.08609041,551.25,550.42,0.30420601]
[1741544287459,3.64457686,551.23,550.41,0.36336549]
[1741544287657,3.64457686,551.23,550.42,0.3042032]
[1741544288055,3.96042939,551.23,550.42,0.3042032]
[1741544288257,0.31585253,551.23,550.42,0.3042032]
[1741544288456,0.31585253,551.23,550.43,0.3042032]
[1741544288658,0.31585253,551.23,550.41,0.36336549]
[1741544288659,0.31585253,551.23,550.44,0.3042032]
[1741544288861,0.31585253,551.23,550.45,0.3042032]
[1741544289057,0.31585253,551.23,550.46,0.3042032]
[1741544289255,0.31585253,551.23,550.41,0.36336549]
[1741544289256,3.64886595,551.22,550.42,0.3042032]
[1741544289456,3.64886595,551.22,550.43,0.3042032]
[1741544289657,3.64886595,551.22,550.42,0.3042032]
[1741544289857,1.40340998,551.21,550.43,0.3042032]
[1741544290061,1.40340998,551.21,550.44,0.3042032]
[1741544290358,1.40340998,551.21,550.45,0.3042032]
[1741544290561,3.65019765,551.2,550.42,0.3042032]
[1741544290756,3.65019765,551.2,550.43,0.3042032]
[1741544290963,3.65019765,551.2,550.42,0.3042032]
[1741544291261,3.65019765,551.19,550.43,0.30417433]
[1741544291560,3.65019765,551.19,550.41,0.36336549]
[1741544291561,3.65019765,551.19,550.44,0.30417433]
[1741544291863,3.65019765,551.18,550.45,0.30417433]
[1741544292064,3.65019765,551.18,550.42,0.30417433]
[1741544292265,1.40340998,551.17,550.43,0.30417433]
[1741544292458,1.40340998,551.17,550.44,0.30417433]
[1741544292671,1.40340998,551.17,550.42,0.30417433]
[1741544292867,1.40340998,551.17,550.41,0.36336549]
[1741544293066,1.40340998,551.16,550.42,0.30418559]
[1741544293465,0.31585253,551.23,550.42,0.30418559]
[1741544293868,0.378,551.3,550.42,0.30418559]
[1741544294062,0.3158081,551.23,550.43,0.30418559]
[1741544294262,0.3158081,551.23,550.44,0.30418559]
[1741544294467,0.378,551.3,550.45,0.30418559]
[1741544294767,0.378,551.3,550.46,0.30418559]
[1741544295168,0.378,551.3,550.47,0.30418559]
[1741544295368,0.378,551.3,550.48,0.30418559]
[1741544295568,0.999,551.29,550.49,0.30418559]
[1741544295865,0.999,551.29,550.5,0.30418559]
[1741544296070,0.999,551.29,550.42,0.30418559]
[1741544296367,0.999,551.29,550.43,0.30418559]
[1741544296569,0.999,551.29,550.44,0.30418559]
[1741544296869,0.999,551.29,550.45,0.30418559]
[1741544297074,0.999,551.29,550.42,0.30418559]
[1741544297263,0.999,551.29,550.43,0.30418559]
[1741544297570,0.999,551.29,550.41,0.36336549]
[1741544297771,0.999,551.29,550.42,0.30403672]
[1741544298068,0.3158124,551.28,550.43,0.30403672]
[1741544298264,0.3158124,551.28,550.44,0.30403672]
[1741544298465,0.3158124,551.28,550.45,0.30403672]
[1741544298671,0.3158124,551.28,550.42,0.30403672]
[1741544299962,1.41770843,551.27,550.42,0.30403672]
[1741544300270,1.41770843,551.27,550.43,0.30413086]
[1741544300471,1.41770843,551.27,550.42,0.30413086]
[1741544300670,1.41770843,551.27,550.43,0.30413086]
[1741544300881,3.68900842,551.26,550.44,0.30413086]
[1741544301066,3.68900842,551.26,550.41,0.36336549]
[1741544301067,1.100234,551.25,550.45,0.30413086]
[1741544301274,4.78924242,551.24,550.46,0.30413086]
[1741544301472,1.100234,551.23,550.42,0.30413086]
[1741544301669,4.78924242,551.22,550.43,0.30413086]
[1741544301970,3.68900842,551.22,550.42,0.30413086]
[1741544302171,4.79062699,551.21,550.43,0.30413086]
[1741544302465,11.77374527,551.2,550.44,0.30413086]
[1741544302671,4.66385546,551.19,550.42,0.30413086]
[1741544302866,8.35286388,551.18,550.43,0.30413086]
[1741544303069,8.35286388,551.18,550.41,0.36336549]
[1741544303070,4.66385546,551.17,550.42,0.30413086]
[1741544303266,4.66385546,551.16,550.43,0.30413086]
[1741544303464,4.66385546,551.15,550.43,0.30413086]
[1741544303669,1.10161857,551.14,550.44,0.30413086]
[1741544303868,1.10161857,551.13,550.45,0.30413086]
[1741544304066,1.10161857,551.12,550.46,0.30413086]
[1741544304270,1.10161857,551.11,550.42,0.30413086]
[1741544304469,1.10161857,551.1,550.41,0.36336549]
[1741544304670,1.10161857,551.09,550.41,0.36336549]
[1741544304969,3.70095514,551.1,550.41,0.36336549]
[1741544304970,1.10161857,551.08,550.41,0.36336549]
[1741544305170,1.10161857,551.07,550.41,0.36336549]
[1741544305366,1.10161857,551.06,550.41,0.36336549]
[1741544305572,1.10161857,551.07,550.41,0.36336549]
[1741544305769,1.10161857,551.06,550.41,0.36336549]
[1741544305970,6.60344656,551.05,550.41,0.36336549]
[1741544306171,7.55058703,551.04,550.41,0.36336549]
[1741544306370,4.66964492,551.03,550.41,0.36336549]
[1741544306571,2.90249142,551.02,550.41,0.36336549]
[1741544306972,3.70095514,551.01,550.41,0.36336549]
[1741544307172,4.0170544,551.01,550.41,0.36336549]
[1741544307773,1.42344428,551.0,550.41,0.36336549]
[1741544308279,1.42344428,550.99,550.41,0.36336549]
[1741544308874,0.31609926,551.01,550.42,0.30432874]
[1741544309267,0.31609926,551.01,550.41,0.36336549]
[1741544309468,0.31609926,551.01,550.43,0.3042382]
[1741544309674,0.31609926,551.01,550.42,0.3042382]
[1741544309869,0.31609926,551.01,550.43,0.3042382]
[1741544310068,0.31609926,551.01,550.41,0.36336549]
[1741544310069,0.31609926,551.01,550.42,0.3042382]
[1741544310274,0.31609926,551.01,550.44,0.3042382]
[1741544310576,0.31609926,551.01,550.45,0.3042382]
[1741544310778,0.31609926,551.01,550.42,0.3042382]
[1741544311075,0.829,551.02,550.42,0.3042382]
[1741544311879,0.31590987,551.01,550.42,0.3042382]
[1741544312771,0.31590987,551.01,550.43,0.3042382]
[1741544312976,0.31590987,551.01,550.42,0.3042382]
[1741544313181,0.31590987,551.01,550.41,0.36336549]
[1741544313182,0.31590987,551.01,550.43,0.3042382]
[1741544313377,0.31590987,551.01,550.44,0.3042382]
[1741544313671,0.31590987,551.01,550.45,0.3042382]
[1741544313880,0.31590987,551.01,550.46,0.3042382]
[1741544314072,0.382,551.0,550.42,0.3042382]
[1741544314272,0.382,551.0,550.43,0.3042382]
[1741544314478,0.382,551.0,550.44,0.3042382]
[1741544314676,0.382,551.0,550.41,0.36336549]
[1741544314979,0.382,551.0,550.42,0.3040488]
[1741544315473,0.382,551.0,550.43,0.3040488]
[1741544315678,0.382,551.0,550.44,0.3040488]
[1741544315878,0.382,551.0,550.45,0.3040488]
[1741544316076,0.382,551.0,550.46,0.3040488]
[1741544316386,0.382,551.0,550.47,0.3040488]
[1741544316680,0.382,551.0,550.48,0.3040488]
[1741544316878,0.382,551.0,550.49,0.3040488]
[1741544317076,0.382,551.0,550.5,0.3040488]
[1741544317274,0.382,551.0,550.51,0.3040488]
[1741544317580,0.382,551.0,550.52,0.3040488]
[1741544317780,0.382,551.0,550.53,0.3040488]
[1741544318084,0.382,551.0,550.41,0.36336549]
[1741544318085,0.382,551.0,550.54,0.3040488]
[1741544318375,0.382,551.0,550.55,0.3040488]
[1741544318580,0.382,551.0,550.56,0.30382842]
[1741544318883,0.382,551.0,550.57,0.30382842]
[1741544319503,0.382,551.0,550.58,0.30384213]
[1741544319682,0.382,551.0,550.59,0.30384213]
[1741544319977,0.382,551.0,550.6,0.30384213]
[1741544320178,0.382,551.0,550.41,0.36336549]
[1741544320179,0.382,551.0,550.61,0.30384213]
[1741544320377,0.382,551.0,550.41,0.36336549]
[1741544320378,0.382,551.0,550.62,0.30384213]
[1741544320582,0.382,551.0,550.63,0.3038225]
[1741544320779,0.382,551.0,550.64,0.3038225]
[1741544320981,0.382,551.0,550.65,0.3038225]
[1741544321176,0.382,551.0,550.66,0.3038225]
[1741544321378,0.382,551.0,550.67,0.3038225]
[1741544321684,0.382,551.0,550.68,0.3038225]
[1741544321879,0.382,551.0,550.69,0.3038225]
[1741544322183,0.382,551.0,550.41,0.36336549]
[1741544322483,0.382,551.0,550.42,0.30385421]
[1741544322680,0.382,551.0,550.43,0.30385421]
[1741544322882,0.382,551.0,550.44,0.30385421]
[1741544323184,0.382,551.0,550.45,0.30385421]
[1741544323381,0.382,551.0,550.46,0.30385421]
[1741544323581,0.382,551.0,550.47,0.30385421]
[1741544323878,0.382,551.0,550.48,0.30385421]
[1741544324082,0.382,551.0,550.49,0.30385421]
[1741544324382,0.382,551.0,550.5,0.30385421]
[1741544324585,0.382,551.0,550.51,0.30385421]
[1741544324875,0.382,551.0,550.52,0.30385421]
[1741544325279,0.382,551.0,550.53,0.30385421]
[1741544325480,0.382,551.0,550.42,0.30385421]
[1741544325782,0.382,551.0,550.43,0.30385421]
[1741544325976,0.382,551.0,550.42,0.30385421]
[1741544327577,0.382,551.0,550.41,0.36336549]
[1741544327795,0.382,551.0,550.42,0.30410072]
[1741544328283,0.912,550.99,550.42,0.30410072]
[1741544328484,0.912,550.99,550.43,0.30410072]
[1741544328685,0.912,550.99,550.44,0.30410072]
[1741544328883,0.912,550.99,550.45,0.30410072]
[1741544329075,0.912,550.99,550.46,0.30410072]
[1741544329476,0.912,550.99,550.47,0.30410072]
[1741544329677,0.912,550.99,550.48,0.30410072]
[1741544329875,0.912,550.99,550.49,0.30410072]
[1741544330083,0.912,550.99,550.42,0.30410072]
[1741544330280,0.912,550.99,550.43,0.30410072]
[1741544330583,0.912,550.99,550.44,0.30410072]
[1741544330781,0.912,550.99,550.42,0.30410072]
[1741544333088,0.912,550.99,550.43,0.3042886]
[1741544333282,0.912,550.99,550.42,0.3042886]
[1741544333582,0.912,550.99,550.43,0.3042886]
[1741544333788,0.912,550.99,550.42,0.3042886]
[1741544333988,0.912,550.99,550.43,0.3042886]
[1741544334188,0.912,550.99,550.42,0.3042886]
[1741544334389,0.912,550.99,550.43,0.3042886]
[1741544334789,0.912,550.99,550.44,0.3042886]
[1741544334991,0.912,550.99,550.42,0.3042886]
[1741544335292,0.912,550.99,550.43,0.3042886]
[1741544335594,0.912,550.99,550.44,0.30429751]
[1741544335789,0.912,550.99,550.42,0.30429751]
[1741544335989,0.912,550.99,550.43,0.30429751]
[1741544336190,0.31601171,550.98,550.41,0.36336549]
[1741544336790,0.31601171,550.98,550.42,0.30434828]
[1741544338795,0.912,550.99,550.42,0.30434828]
[1741544338993,0.31595433,550.97,550.42,0.30434828]
[1741544341888,1.09825906,551.21,550.42,0.30434828]
[1741544342094,0.31594142,550.96,550.42,0.30434828]
[1741544342491,2.854736,551.19,550.42,0.30434828]
[1741544342893,11.73466071,551.18,550.41,0.36336549]
[1741544343096,8.05075286,551.17,550.41,0.36336549]
[1741544343395,8.05075286,551.16,550.41,0.36336549]
[1741544343590,1.75445784,551.11,550.41,0.36336549]
[1741544343792,4.64370295,551.1,550.41,0.36336549]
[1741544343987,8.05075286,551.09,550.41,0.36336549]
[1741544344194,6.94288715,551.08,550.41,0.36336549]
[1741544344495,8.04775108,551.07,549.55,1.33358362]
[1741544344688,1.75445784,550.99,549.56,0.30446139]
[1741544344893,6.23626337,550.98,549.57,0.66838227]
[1741544345094,1.04783406,550.96,549.58,0.30446139]
[1741544345389,1.75445784,550.86,549.59,0.30446139]
[1741544345595,2.88722601,550.85,549.58,0.30446139]
[1741544345896,2.85044449,550.84,549.59,0.30446139]
[1741544346197,4.63941144,550.83,549.6,0.30446139]
[1741544346390,4.63941144,550.82,549.58,0.30446139]
[1741544346597,4.63941144,550.81,549.57,0.36392088]
[1741544346795,5.18431521,550.8,549.58,0.30451902]
[1741544347096,8.03815643,550.79,549.58,0.30451902]
[1741544347296,8.03815643,550.78,549.58,0.30451902]
[1741544347519,8.03564029,550.77,549.58,0.30451902]
[1741544347695,8.03554364,550.76,549.58,0.30451902]
[1741544347892,8.03536428,550.75,549.58,0.30451902]
[1741544348091,8.03536428,550.75,549.59,0.30451902]
[1741544348092,8.03536428,550.74,549.59,0.30451902]
[1741544348398,1.75445784,550.7,549.6,0.30451902]
[1741544348598,4.63941144,550.69,549.61,0.30451902]
[1741544348798,5.18431521,550.68,549.62,0.30451902]
[1741544349094,6.53435234,550.67,549.63,0.30451902]
[1741544349298,3.68390785,550.67,549.64,0.30451902]
[1741544349498,3.68390785,550.67,549.58,0.30451902]
[1741544349798,3.68390785,550.67,549.57,0.36392088]
[1741544349799,4.77541245,550.66,549.59,0.30451902]
[1741544350095,2.83758592,550.65,549.6,0.30451902]
[1741544350297,1.09142375,550.64,549.58,0.30451902]
[1741544350496,1.09142375,550.64,549.57,0.36392088]
[1741544350497,1.09142375,550.63,549.59,0.30451902]
[1741544350798,4.7753316,550.62,549.6,0.30451902]
[1741544350998,2.83758592,550.61,549.6,0.30451902]
[1741544351194,3.68390785,550.62,549.58,0.30451902]
[1741544351399,3.68390785,550.6,549.59,0.30451902]
[1741544351701,3.68390785,550.59,549.58,0.30451902]
[1741544351899,3.68390785,550.59,549.59,0.30451902]
[1741544352298,3.68390785,550.58,549.6,0.30451902]
[1741544352499,3.68390785,550.58,549.58,0.30451902]
[1741544352897,1.41686605,550.57,549.58,0.30451902]
[1741544353299,1.41686605,550.56,549.58,0.30451902]
[1741544353999,0.3164485,550.57,549.57,0.36392088]
[1741544354000,3.68390785,550.55,549.59,0.3046552]
[1741544354309,3.68390785,550.55,549.6,0.3046552]
[1741544354500,4.77122046,550.54,549.58,0.3046552]
[1741544354701,1.08731261,550.53,549.59,0.3046552]
[1741544354895,3.68390785,550.52,549.58,0.3046552]
[1741544355094,1.08731261,550.51,549.58,0.3046552]
[1741544355296,3.68390785,550.52,549.58,0.3046552]
[1741544355507,3.68390785,550.5,549.58,0.3046552]
[1741544355698,3.68390785,550.5,549.59,0.30463782]
[1741544356001,1.41686605,550.49,549.6,0.30463782]
[1741544356201,1.41686605,550.49,549.58,0.30463782]
[1741544356403,1.41686605,550.49,549.59,0.30463782]
[1741544356606,1.41686605,550.48,549.6,0.30463782]
[1741544356807,1.41686605,550.48,549.61,0.30463782]
[1741544357006,1.41686605,550.48,549.57,0.36392088]
[1741544357007,1.73317649,550.48,549.58,0.30463782]
[1741544357203,0.31631044,550.48,549.59,0.30463782]
[1741544357404,0.31631044,550.48,549.58,0.30463782]
[1741544357608,1.40188755,550.47,549.59,0.30463782]
[1741544358008,1.40188755,550.47,549.6,0.30463782]
[1741544358209,3.66892935,550.46,549.58,0.30463782]
[1741544358410,3.66892935,550.46,549.59,0.30463782]
[1741544358608,3.66892935,550.45,549.6,0.30463782]
[1741544358811,3.66892935,550.45,549.58,0.30463782]
[1741544359115,0.31631044,550.48,549.59,0.30463782]
[1741544359409,0.31631044,550.48,549.6,0.30463782]
[1741544359607,1.08604116,550.47,549.61,0.30463782]
[1741544359808,1.08604116,550.46,549.62,0.30463782]
[1741544360010,1.08604116,550.45,549.58,0.30463782]
[1741544360309,3.66776882,550.44,549.59,0.30463782]
[1741544360513,3.66776882,550.44,549.58,0.30463782]
[1741544360704,3.66776882,550.43,549.59,0.30463782]
[1741544360910,3.66776882,550.43,549.6,0.30463782]
[1741544361309,3.66776882,550.42,549.61,0.30463782]
[1741544361511,3.66776882,550.42,549.58,0.30463782]
[1741544361709,1.0844181,550.41,549.59,0.30463782]
[1741544361910,1.0844181,550.41,549.58,0.30463782]
[1741544362211,3.66776882,550.4,549.59,0.30463782]
[1741544362410,1.08376296,550.39,549.58,0.30463782]
[1741544362610,1.08376296,550.39,549.59,0.30463782]
[1741544362806,3.66776882,550.4,549.59,0.30463782]
[1741544363027,1.08377109,550.39,549.6,0.30463782]
[1741544363304,3.66776882,550.38,549.61,0.30463782]
[1741544363505,4.75153991,550.37,549.58,0.30463782]
[1741544363710,1.08377109,550.36,549.59,0.30463782]
[1741544364011,1.08377109,550.36,549.57,0.36392088]
[1741544364213,3.66776882,550.35,549.57,0.36392088]
[1741544364407,3.66776882,550.35,549.58,0.30472983]
[1741544364706,1.40072702,550.35,549.58,0.30472983]
[1741544364910,2.2670418,550.46,549.58,0.30472983]
[1741544364911,1.40072702,550.34,549.58,0.30472983]
[1741544365512,1.40072702,550.45,549.58,0.30472983]
[1741544366107,0.31631044,550.48,549.58,0.30472983]
[1741544366606,1.39676583,550.47,549.58,0.30472983]
[1741544367213,1.39676583,550.46,549.58,0.30472983]
[1741544368112,1.39676583,550.45,549.58,0.30472983]
[1741544368709,1.39676583,550.44,549.58,0.30472983]
[1741544369112,1.39676583,550.43,549.58,0.30472983]
[1741544369821,1.39676583,550.42,549.58,0.30472983]
[1741544370115,1.7131683,550.42,549.57,0.36392088]
[1741544370413,1.39676583,550.41,549.58,0.30474604]
[1741544370614,1.78176583,550.41,549.58,0.30474604]
[1741544371007,1.39676583,550.4,549.58,0.30474604]
[1741544371212,1.39676583,550.4,549.57,0.36392088]
[1741544371611,1.39676583,550.39,549.57,0.36392088]
[1741544372009,1.39676583,550.38,549.57,0.36392088]
[1741544372612,1.39676583,550.37,549.57,0.36392088]
[1741544373016,1.39676583,550.36,549.57,0.36392088]
[1741544373317,1.71337844,550.36,549.57,0.36392088]
[1741544373514,1.71337844,550.36,549.58,0.30469067]
[1741544373815,0.31661261,550.36,549.58,0.30469067]
[1741544375515,1.39676583,550.35,549.58,0.30469067]
[1741544376114,1.39676583,550.34,549.58,0.30469067]
[1741544376520,1.39676583,550.33,549.57,0.36392088]
[1741544377022,1.39676583,550.32,549.57,0.36392088]
[1741544377715,1.39676583,550.31,549.57,0.36392088]
[1741544378115,1.39676583,550.3,549.57,0.36392088]
[1741544379021,1.39676583,550.29,549.57,0.36392088]
[1741544379222,1.39676583,550.28,549.58,0.30475759]
[1741544379720,1.39676583,550.27,549.58,0.30475759]
[1741544380322,1.39676583,550.26,549.58,0.30475759]
[1741544381020,0.31661261,550.36,549.58,0.30475759]
[1741544381525,1.39778522,550.35,549.58,0.30475759]
[1741544381930,1.064,550.34,549.58,0.30475759]
[1741544382316,1.064,550.34,549.59,0.30475759]
[1741544382518,1.064,550.34,549.57,0.36392088]
[1741544382719,1.064,550.34,549.58,0.30464912]
[1741544383823,1.4012596,550.33,549.58,0.30464912]
[1741544384021,1.4012596,550.32,549.58,0.30464912]
[1741544384216,1.4012596,550.32,549.57,0.36392088]
[1741544384421,1.4012596,550.32,549.58,0.30464288]
[1741544384732,0.31636939,550.33,549.58,0.30464288]
[1741544384922,0.383,550.32,549.58,0.30464288]
[1741544386844,1.40236561,550.31,549.58,0.30464288]
[1741544387220,0.31638521,550.31,549.58,0.30464288]
[1741544388028,0.31638521,550.31,549.59,0.3046675]
[1741544388228,0.31638521,550.31,549.58,0.3046675]
[1741544388630,1.40512801,550.3,549.58,0.3046675]
[1741544389231,0.31638521,550.31,549.58,0.3046675]
[1741544389834,0.383,550.32,549.58,0.3046675]
[1741544390230,0.31640678,550.3,549.58,0.3046675]
[1741544391028,1.40674148,550.29,549.58,0.3046675]
[1741544391433,1.40674148,550.28,549.58,0.3046675]
[1741544391932,3.6602349,550.27,549.58,0.3046675]
[1741544392927,1.40674148,550.26,549.58,0.3046675]
[1741544393232,1.40674148,550.25,549.58,0.3046675]
[1741544393833,1.40674148,550.24,549.58,0.3046675]
[1741544394128,1.40674148,550.23,549.58,0.3046675]
[1741544394934,1.40674148,550.22,549.59,0.36390764]
[1741544395233,1.40674148,550.22,549.6,0.30472968]
[1741544395433,0.31644994,550.26,549.61,0.36389439]
[1741544395634,0.31644994,550.26,549.62,0.30472968]
[1741544395935,0.383,550.32,549.63,0.66858653]
[1741544396230,0.383,550.32,549.64,0.30470538]
[1741544397336,0.31637226,550.31,549.64,0.30470538]
[1741544398636,0.31637226,550.31,549.63,0.36388115]
[1741544398838,0.31637226,550.31,549.64,0.30470041]
[1741544400034,1.41557367,550.3,549.64,0.30470041]
[1741544400237,1.41557367,550.29,549.64,0.30470041]
[1741544400430,1.41557367,550.29,549.65,0.30472584]
[1741544400632,1.41557367,550.29,549.66,0.30472584]
[1741544400937,1.41557367,550.28,549.67,0.30472584]
[1741544401134,1.41557367,550.28,549.63,0.36388115]
[1741544401348,1.41557367,550.28,549.64,0.30475073]
[1741544401539,1.41557367,550.27,549.64,0.30475073]
[1741544401731,1.41557367,550.27,549.63,0.36388115]
[1741544401941,1.41557367,550.27,549.64,0.30472642]
[1741544402132,0.31637226,550.31,549.64,0.30472642]
[1741544402745,1.41892779,550.3,549.64,0.30472642]
[1741544403338,1.41892779,550.29,549.64,0.30472642]
[1741544403941,0.31637226,550.31,549.64,0.30472642]
[1741544404939,0.383,550.32,549.64,0.30472642]
[1741544405335,0.383,550.32,549.65,0.3046108]
[1741544405544,0.383,550.32,549.66,0.3046108]
[1741544405839,0.383,550.32,549.67,0.3046108]
[1741544406042,0.31635501,550.31,549.64,0.3046108]
[1741544406244,0.31635501,550.31,549.65,0.3046108]
[1741544406444,0.31635501,550.31,549.64,0.3046108]
[1741544406944,0.31635501,550.31,549.65,0.36386791]
[1741544407245,0.31635501,550.31,549.66,0.3046108]
[1741544407842,1.064,550.34,549.65,0.36386791]
[1741544408043,1.064,550.34,549.66,0.30472341]
[1741544408244,0.31640103,550.3,549.66,0.30472341]
[1741544409046,1.42266188,550.29,549.66,0.30472341]
[1741544409845,1.42266188,550.28,549.66,0.30472341]
[1741544410043,1.1026536,550.27,549.66,0.30472341]
[1741544410244,0.384,550.27,549.66,0.30472341]
[1741544410445,1.10274664,550.26,549.66,0.30472341]
[1741544410639,1.42266188,550.26,549.66,0.30472341]
[1741544410840,1.42266188,550.26,549.67,0.3047262]
[1741544411040,1.42266188,550.26,549.66,0.3047262]
[1741544411246,1.42266188,550.26,549.67,0.3047262]
[1741544411446,1.42266188,550.26,549.66,0.3047262]
[1741544411646,0.384,550.27,549.67,0.3047262]
[1741544411843,0.384,550.27,549.66,0.3047262]
[1741544412047,0.384,550.27,549.67,0.3047262]
[1741544412247,0.384,550.27,549.68,0.3047262]
[1741544412448,0.384,550.27,549.69,0.3047262]
[1741544412845,0.384,550.27,549.7,0.3047262]
[1741544413352,0.384,550.27,549.71,0.3047262]
[1741544413652,0.384,550.27,549.72,0.3047262]
[1741544413951,0.384,550.27,549.73,0.3047262]
[1741544414151,0.384,550.27,549.66,0.3047262]
[1741544414343,0.384,550.27,549.74,0.3047262]
[1741544414558,0.384,550.27,549.75,0.30458908]
[1741544414750,0.384,550.27,549.66,0.30458908]
[1741544414951,0.384,550.27,549.65,0.36386791]
[1741544414952,0.384,550.27,549.67,0.30458908]
[1741544415149,0.384,550.27,549.68,0.30458908]
[1741544415352,0.384,550.27,549.69,0.30458908]
[1741544415547,0.384,550.27,549.7,0.30458908]
[1741544415953,0.384,550.27,549.71,0.30458908]
[1741544416147,0.384,550.27,549.65,0.36386791]
[1741544416148,0.384,550.27,549.72,0.30458908]
[1741544416353,0.384,550.27,549.65,0.36386791]
[1741544416354,0.384,550.27,549.66,0.30458908]
[1741544416657,0.384,550.27,549.67,0.30458908]
[1741544416962,0.384,550.27,549.68,0.30458908]
[1741544417154,0.384,550.27,549.66,0.30458908]